lending/lending_fUSD_20241115
["ID","MTS","AMOUNT","RATE_DAILY","PERIOD"]
[342286069,1731694262779,-500.0,9.794e-05,2]
[342286070,1731694262789,-500.0,9.794e-05,2]
[342286071,1731694262799,-1352.86,9.794e-05,2]
[342286072,1731694262809,-529.99,9.794e-05,2]
[342286073,1731694262818,-516.86,9.794e-05,2]
[342286074,1731694262827,-500.0,9.794e-05,2]
[342286075,1731694262837,-500.0,9.794e-05,2]
[342286076,1731694262846,-568.46,9.794e-05,2]
[342286077,1731694262856,-500.0,9.794e-05,2]
[342286078,1731694262865,-500.0,9.794e-05,2]
[342286079,1731694262875,-500.0,9.794e-05,2]
[342286080,1731694262883,-500.0,9.794e-05,2]
[342286081,1731694262892,-526.46,9.794e-05,2]
[342286082,1731694262901,-723.07,9.794e-05,2]
[342286083,1731694262910,-500.0,9.794e-05,2]
[342286084,1731694262919,-594.49,9.794e-05,2]
[342286085,1731694262928,-500.0,9.794e-05,2]
[342286086,1731694262937,-500.0,9.794e-05,2]
[342286087,1731694262946,-500.0,9.794e-05,2]
[342286088,1731694262956,-500.0,9.794e-05,2]
[342286089,1731694262967,-500.0,9.794e-05,2]
[342286090,1731694262976,-507.94771266,9.794e-05,2]
[342286091,1731694262986,-1131.47,9.794e-05,2]
[342286092,1731694262995,-1384.55,9.794e-05,2]
[342286093,1731694263004,-502.6211069,9.794e-05,2]
[342286094,1731694263014,-500.0,9.794e-05,2]
[342286095,1731694263023,-500.0,9.794e-05,2]
[342286096,1731694263033,-1764.81,9.794e-05,2]
[342286097,1731694263044,-845.94,9.794e-05,2]
[342286098,1731694263053,-500.0,9.794e-05,2]
[342286099,1731694263062,-626.1,9.794e-05,2]
[342286100,1731694263073,-1041.5,9.794e-05,2]
[342286101,1731694263082,-500.0,9.794e-05,2]
[342286102,1731694263092,-500.0,9.794e-05,2]
[342286103,1731694263103,-500.0,9.794e-05,2]
[342286104,1731694263112,-563.49,9.794e-05,2]
[342286105,1731694263121,-667.51,9.794e-05,2]
[342286106,1731694263132,-661.01,9.794e-05,2]
[342286107,1731694263142,-500.0,9.794e-05,2]
[342286108,1731694263152,-500.0,9.794e-05,2]
[342286109,1731694263162,-500.0,9.794e-05,2]
[342286110,1731694263172,-500.0,9.794e-05,2]
[342286111,1731694263182,-500.0,9.794e-05,2]
[342286112,1731694263192,-500.0,9.794e-05,2]
[342286113,1731694263202,-2467.95,9.794e-05,2]
[342286114,1731694263211,-500.0,9.794e-05,2]
[342286115,1731694263220,-1238.12,9.794e-05,2]
[342286116,1731694263230,-538.44,9.794e-05,2]
[342286117,1731694263239,-500.0,9.794e-05,2]
[342286118,1731694263249,-500.0,9.794e-05,2]
[342286119,1731694263258,-1549.03,9.794e-05,2]
[342286120,1731694263268,-1166.81,9.794e-05,2]
[342286121,1731694263277,-500.0,9.794e-05,2]
[342286122,1731694263287,-207.54,9.794e-05,2]
[342286123,1731694263297,-500.0,9.794e-05,2]
[342286124,1731694263308,-529.58118002,9.794e-05,2]
[342286125,1731694263318,-500.0,9.794e-05,2]
[342286126,1731694263327,-1858.75,9.794e-05,2]
[342286127,1731694263337,-500.0,9.794e-05,2]
[342286128,1731694263347,-1115.63,9.794e-05,2]
[342286129,1731694263357,-500.0,9.794e-05,2]
[342286130,1731694263366,-500.0,9.794e-05,2]
[342286131,1731694263376,-609.85,9.794e-05,2]
[342286132,1731694263385,-500.0,9.794e-05,2]
[342286133,1731694263394,-870.93,9.794e-05,2]
[342286134,1731694263403,-602.32785507,9.794e-05,2]
[342286135,1731694263412,-856.18,9.794e-05,2]
[342286136,1731694263422,-1026.62,9.794e-05,2]
[342286137,1731694263431,-500.0,9.794e-05,2]
[342286138,1731694263440,-894.3,9.794e-05,2]
[342286139,1731694263449,-5911.09,9.794e-05,2]
[342286140,1731694263458,-628.6,9.794e-05,2]
[342286141,1731694263468,-1501.77,9.794e-05,2]
[342286142,1731694263477,-1290.18,9.794e-05,2]
[342286143,1731694263487,-500.0,9.794e-05,2]
[342286144,1731694263496,-641.07,9.794e-05,2]
[342286145,1731694263505,-500.0,9.794e-05,2]
[342286146,1731694263514,-500.0,9.794e-05,2]
[342286147,1731694263523,-500.0,9.794e-05,2]
[342286148,1731694263533,-528.29739808,9.794e-05,2]
[342286149,1731694263543,-500.0,9.794e-05,2]
[342286150,1731694263552,-500.0,9.794e-05,2]
[342286151,1731694263562,-500.0,9.794e-05,2]
[342286152,1731694263572,-500.0,9.794e-05,2]
[342286153,1731694263581,-687.53,9.794e-05,2]
[342286154,1731694263590,-500.0,9.794e-05,2]
[342286155,1731694263599,-500.0,9.794e-05,2]
[342286156,1731694263609,-2047.35,9.794e-05,2]
[342286157,1731694263619,-2092.61,9.794e-05,2]
[342286158,1731694263628,-500.0,9.794e-05,2]
[342286159,1731694263638,-976.1,9.794e-05,2]
[342286160,1731694263647,-592.92,9.794e-05,2]
[342286161,1731694263657,-500.0,9.794e-05,2]
[342286162,1731694263667,-500.0,9.794e-05,2]
[342286163,1731694263676,-500.0,9.794e-05,2]
[342286164,1731694263686,-500.0,9.794e-05,2]
[342286165,1731694263696,-526.74979261,9.794e-05,2]
[342286166,1731694263706,-500.0,9.794e-05,2]
[342286167,1731694263715,-2064.55,9.794e-05,2]
[342286168,1731694263724,-500.0,9.794e-05,2]
[342286169,1731694263733,-500.0,9.794e-05,2]
[342286170,1731694263743,-1122.03,9.794e-05,2]
[342286171,1731694263752,-500.0,9.794e-05,2]
[342286172,1731694263762,-1962.96,9.794e-05,2]
[342286173,1731694263772,-4793.06,9.794e-05,2]
[342286174,1731694263781,-717.57,9.794e-05,2]
[342286175,1731694263793,-1811.8,9.794e-05,2]
[342286176,1731694263803,-1094.39,9.794e-05,2]
[342286177,1731694263812,-500.0,9.794e-05,2]
[342286178,1731694263822,-500.0,9.794e-05,2]
[342286179,1731694263832,-500.0,9.794e-05,2]
[342286180,1731694263841,-500.0,9.794e-05,2]
[342286181,1731694263850,-2429.02,9.794e-05,2]
[342286182,1731694263859,-482.34019395,9.794e-05,2]
[342286183,1731694263868,-575.4,9.794e-05,2]
[342286184,1731694263878,-500.0,9.794e-05,2]
[342286185,1731694263887,-500.0,9.794e-05,2]
[342286186,1731694263896,-5513.04,9.794e-05,2]
[342286187,1731694263906,-500.0,9.794e-05,2]
[342286188,1731694263915,-500.0,9.794e-05,2]
[342286189,1731694263924,-500.0,9.794e-05,2]
[342286190,1731694263934,-390.14698805,9.794e-05,2]
[342286191,1731694263943,-548.5,9.794e-05,2]
[342286192,1731694263952,-996.71,9.794e-05,2]
[342286193,1731694263964,-500.0,9.794e-05,2]
[342286194,1731694263974,-576.82,9.794e-05,2]
[342286195,1731694263983,-500.0,9.794e-05,2]
[342286196,1731694263993,-500.0,9.794e-05,2]
[342286197,1731694264002,-724.49,9.794e-05,2]
[342286198,1731694264013,-500.0,9.794e-05,2]
[342286199,1731694264023,-500.0,9.794e-05,2]
[342286200,1731694264032,-500.0,9.794e-05,2]
[342286201,1731694264045,-500.0,9.794e-05,2]
[342286202,1731694264055,-500.0,9.794e-05,2]
[342286203,1731694264064,-803.24,9.794e-05,2]
[342286204,1731694264073,-500.0,9.794e-05,2]
[342286205,1731694264083,-500.0,9.794e-05,2]
[342286206,1731694264092,-500.0,9.794e-05,2]
[342286207,1731694264102,-500.0,9.794e-05,2]
[342286208,1731694264112,-584.3,9.794e-05,2]
[342286209,1731694264122,-500.0,9.794e-05,2]
[342286210,1731694264131,-500.0,9.794e-05,2]
[342286211,1731694264141,-500.0,9.794e-05,2]
[342286212,1731694264150,-726.77,9.794e-05,2]
[342286213,1731694264160,-6365.68,9.794e-05,2]
[342286214,1731694264171,-1930.36,9.794e-05,2]
[342286215,1731694264180,-178.24177761,9.794e-05,2]
[342286216,1731694264190,-608.92,9.794e-05,2]
[342286217,1731694264200,-4090.82,9.794e-05,2]
[342286218,1731694264209,-460.39056046,9.794e-05,2]
[342286219,1731694264219,-2963.35,9.794e-05,2]
[342286220,1731694264228,-656.86,9.794e-05,2]
[342286221,1731694264238,-500.0,9.794e-05,2]
[342286222,1731694264247,-500.0,9.794e-05,2]
[342286223,1731694264256,-394.33708639,9.794e-05,2]
[342286224,1731694264265,-2966.56,9.794e-05,2]
[342286225,1731694264274,-661.07,9.794e-05,2]
[342286226,1731694264284,-500.0,9.794e-05,2]
[342286227,1731694264294,-1035.76,9.794e-05,2]
[342286228,1731694264304,-732.38,9.794e-05,2]
[342286229,1731694264313,-500.0,9.794e-05,2]
[342286230,1731694264322,-920.5,9.794e-05,2]
[342286231,1731694264331,-500.0,9.794e-05,2]
[342286232,1731694264341,-742.47,9.794e-05,2]
[342286233,1731694264350,-500.0,9.794e-05,2]
[342286234,1731694264359,-1555.34,9.794e-05,2]
[342286235,1731694264368,-500.0,9.794e-05,2]
[342286236,1731694264377,-1001.64,9.794e-05,2]
[342286237,1731694264386,-500.0,9.794e-05,2]
[342286238,1731694264395,-500.0,9.794e-05,2]
[342286239,1731694264404,-1356.87,9.794e-05,2]
[342286240,1731694264414,-500.0,9.794e-05,2]
[342286241,1731694264423,-500.0,9.794e-05,2]
[342286242,1731694264432,-1788.75,9.794e-05,2]
[342286243,1731694264442,-613.3,9.794e-05,2]
[342286244,1731694264451,-5604.37,9.794e-05,2]
[342286245,1731694264460,-500.0,9.794e-05,2]
[342286246,1731694264469,-566.14,9.794e-05,2]
[342286247,1731694264479,-1598.21,9.794e-05,2]
[342286248,1731694264488,-684.01,9.794e-05,2]
[342286249,1731694264498,-859.06,9.794e-05,2]
[342286250,1731694264507,-545.13437539,9.794e-05,2]
[342286251,1731694264517,-500.0,9.794e-05,2]
[342286252,1731694264527,-500.0,9.794e-05,2]
[342286253,1731694264537,-500.0,9.794e-05,2]
[342286254,1731694264547,-500.0,9.794e-05,2]
[342286255,1731694264557,-27914.34,9.794e-05,2]
[342286256,1731694264567,-500.0,9.794e-05,2]
[342286257,1731694264576,-675.99,9.794e-05,2]
[342286258,1731694264585,-3048.91,9.794e-05,2]
[342286259,1731694264594,-3716.09,9.794e-05,2]
[342286260,1731694264604,-500.0,9.794e-05,2]
[342286261,1731694264613,-1903.08,9.794e-05,2]
[342286262,1731694264622,-1287.98,9.794e-05,2]
[342286263,1731694264631,-572.97,9.794e-05,2]
[342286264,1731694264641,-500.0,9.794e-05,2]
[342286265,1731694264654,-500.0,9.794e-05,2]
[342286266,1731694264665,-500.0,9.794e-05,2]
[342286267,1731694264675,-500.0,9.794e-05,2]
[342286268,1731694264684,-500.0,9.794e-05,2]
[342286269,1731694264695,-749.17,9.794e-05,2]
[342286270,1731694264704,-858.99,9.794e-05,2]
[342286271,1731694264714,-500.0,9.794e-05,2]
[342286272,1731694264724,-1256.42,9.794e-05,2]
[342286273,1731694264733,-500.0,9.794e-05,2]
[342286274,1731694264743,-562.98,9.794e-05,2]
[342286275,1731694264752,-500.0,9.794e-05,2]
[342286276,1731694264762,-500.0,9.794e-05,2]
[342286277,1731694264771,-544.47,9.794e-05,2]
[342286278,1731694264781,-1510.02,9.794e-05,2]
[342286279,1731694264792,-2074.67,9.794e-05,2]
[342286280,1731694264801,-500.0,9.794e-05,2]
[342286281,1731694264810,-500.0,9.794e-05,2]
[342286282,1731694264820,-500.0,9.794e-05,2]
[342286283,1731694264829,-2847.51,9.794e-05,2]
[342286284,1731694264839,-500.0,9.794e-05,2]
[342286285,1731694264848,-982.65,9.794e-05,2]
[342286286,1731694264858,-1580.95,9.794e-05,2]
[342286287,1731694264867,-793.52,9.794e-05,2]
[342286288,1731694264877,-1398.16,9.794e-05,2]
[342286289,1731694264887,-973.26,9.794e-05,2]
[342286290,1731694264897,-575.21,9.794e-05,2]
[342286291,1731694264906,-500.0,9.794e-05,2]
[342286292,1731694264916,-500.0,9.794e-05,2]
[342286293,1731694264925,-4678.34,9.794e-05,2]
[342286294,1731694264935,-1121.36,9.794e-05,2]
[342286295,1731694264944,-1658.95,9.794e-05,2]
[342286296,1731694264953,-500.0,9.794e-05,2]
[342286297,1731694264967,-2777.64,9.794e-05,2]
[342286298,1731694264976,-500.0,9.794e-05,2]
[342286299,1731694264986,-1637.22,9.794e-05,2]
[342286300,1731694264995,-608.09,9.794e-05,2]
[342286301,1731694265004,-500.0,9.794e-05,2]
[342286302,1731694265014,-945.74,9.794e-05,2]
[342286303,1731694265023,-2472.18,9.794e-05,2]
[342286304,1731694265032,-500.0,9.794e-05,2]
[342286305,1731694265045,-500.0,9.794e-05,2]
[342286306,1731694265055,-500.0,9.794e-05,2]
[342286307,1731694265065,-742.68,9.794e-05,2]
[342286308,1731694265074,-761.57,9.794e-05,2]
[342286309,1731694265083,-2073.68,9.794e-05,2]
[342286310,1731694265092,-500.0,9.794e-05,2]
[342286311,1731694265102,-500.0,9.794e-05,2]
[342286312,1731694265111,-500.0,9.794e-05,2]
[342286313,1731694265120,-1087.19,9.794e-05,2]
[342286314,1731694265129,-500.0,9.794e-05,2]
[342286315,1731694265138,-617.16,9.794e-05,2]
[342286316,1731694265148,-500.0,9.794e-05,2]
[342286317,1731694265158,-500.0,9.794e-05,2]
[342286318,1731694265167,-500.0,9.794e-05,2]
[342286319,1731694265177,-1231.41,9.794e-05,2]
[342286320,1731694265186,-543.87,9.794e-05,2]
[342286321,1731694265196,-500.0,9.794e-05,2]
[342286322,1731694265205,-1107.14,9.794e-05,2]
[342286323,1731694265215,-500.0,9.794e-05,2]
[342286324,1731694265225,-2544.2,9.794e-05,2]
[342286325,1731694265235,-151.08455704,9.794e-05,2]
[342286326,1731694265244,-500.0,9.794e-05,2]
[342286327,1731694265254,-563.0,9.794e-05,2]
[342286328,1731694265264,-1099.06,9.794e-05,2]
[342286329,1731694265275,-500.0,9.794e-05,2]
[342286330,1731694265285,-500.0,9.794e-05,2]
[342286331,1731694265295,-500.0,9.794e-05,2]
[342286332,1731694265305,-3531.55,9.794e-05,2]
[342286333,1731694265315,-500.0,9.794e-05,2]
[342286334,1731694265325,-500.0,9.794e-05,2]
[342286335,1731694265335,-500.0,9.794e-05,2]
[342286336,1731694265345,-500.0,9.794e-05,2]
[342286337,1731694265354,-500.0,9.794e-05,2]
[342286338,1731694265364,-3294.6,9.794e-05,2]
[342286339,1731694265374,-500.0,9.794e-05,2]
[342286340,1731694265383,-500.0,9.794e-05,2]
[342286341,1731694265393,-500.0,9.794e-05,2]
[342286342,1731694265402,-500.0,9.794e-05,2]
[342286343,1731694265411,-965.19,9.794e-05,2]
[342286344,1731694265420,-500.0,9.794e-05,2]
[342286345,1731694265430,-2427.28,9.794e-05,2]
[342286346,1731694265439,-2190.64,9.794e-05,2]
[342286347,1731694265448,-1552.64,9.794e-05,2]
[342286348,1731694265457,-500.0,9.794e-05,2]
[342286349,1731694265467,-341.14453545,9.794e-05,2]
[342286350,1731694265602,-500.0,9.794e-05,2]
[342286351,1731694265612,-1366.19,9.794e-05,2]
[342286352,1731694265621,-1068.7,9.794e-05,2]
[342286353,1731694265631,-588.38,9.794e-05,2]
[342286354,1731694265640,-500.0,9.794e-05,2]
[342286355,1731694265649,-1613.92,9.794e-05,2]
[342286356,1731694265658,-862.18,9.794e-05,2]
[342286357,1731694265667,-500.0,9.794e-05,2]
[342286358,1731694265677,-556.68,9.794e-05,2]
[342286359,1731694265686,-500.0,9.794e-05,2]
[342286360,1731694265696,-1917.6,9.794e-05,2]
[342286361,1731694265706,-736.05,9.794e-05,2]
[342286362,1731694265715,-500.0,9.794e-05,2]
[342286363,1731694265724,-500.0,9.794e-05,2]
[342286364,1731694265733,-3058.28,9.794e-05,2]
[342286365,1731694265742,-500.0,9.794e-05,2]
[342286366,1731694265751,-500.0,9.794e-05,2]
[342286367,1731694265761,-500.0,9.794e-05,2]
[342286368,1731694265770,-500.0,9.794e-05,2]
[342286369,1731694265779,-616.35,9.794e-05,2]
[342286370,1731694265789,-1345.85,9.794e-05,2]
[342286371,1731694265798,-500.0,9.794e-05,2]
[342286372,1731694265808,-500.0,9.794e-05,2]
[342286373,1731694265818,-500.0,9.794e-05,2]
[342286374,1731694265827,-4078.51,9.794e-05,2]
[342286375,1731694265836,-500.0,9.794e-05,2]
[342286376,1731694265846,-1395.4,9.794e-05,2]
[342286377,1731694265856,-532.18306443,9.794e-05,2]
[342286378,1731694265867,-500.0,9.794e-05,2]
[342286379,1731694265876,-534.78,9.794e-05,2]
[342286380,1731694265886,-500.0,9.794e-05,2]
[342286381,1731694265898,-500.0,9.794e-05,2]
[342286382,1731694265907,-500.0,9.794e-05,2]
[342286383,1731694265917,-713.44,9.794e-05,2]
[342286384,1731694265927,-836.25,9.794e-05,2]
[342286385,1731694265937,-1350.58,9.794e-05,2]
[342286386,1731694265947,-13327.05,9.794e-05,2]
[342286387,1731694265958,-586.79,9.794e-05,2]
[342286388,1731694265971,-983.62,9.794e-05,2]
[342286389,1731694265981,-554.64,9.794e-05,2]
[342286390,1731694265990,-1577.93,9.794e-05,2]
[342286391,1731694266000,-500.0,9.794e-05,2]
[342286392,1731694266015,-504.75,9.794e-05,2]
[342286393,1731694266025,-4119.01,9.794e-05,2]
[342286394,1731694266036,-1186.42,9.794e-05,2]
[342286395,1731694266048,-926.9,9.794e-05,2]
[342286396,1731694266058,-191.92852926,9.794e-05,2]
[342286397,1731694266069,-820.01,9.794e-05,2]
[342286398,1731694266079,-500.0,9.794e-05,2]
[342286399,1731694266090,-500.0,9.794e-05,2]
[342286400,1731694266100,-500.0,9.794e-05,2]
[342286401,1731694266110,-4830.99,9.794e-05,2]
[342286402,1731694266121,-640.9,9.794e-05,2]
[342286403,1731694266131,-500.0,9.794e-05,2]
[342286404,1731694266143,-500.0,9.794e-05,2]
[342286405,1731694266153,-1214.64,9.794e-05,2]
[342286406,1731694266164,-500.0,9.794e-05,2]
[342286407,1731694266175,-500.0,9.794e-05,2]
[342286408,1731694266185,-500.0,9.794e-05,2]
[342286409,1731694266195,-500.0,9.794e-05,2]
[342286410,1731694266205,-500.0,9.794e-05,2]
[342286411,1731694266215,-500.0,9.794e-05,2]
[342286412,1731694266225,-500.0,9.794e-05,2]
[342286413,1731694266235,-3074.17,9.794e-05,2]
[342286414,1731694266246,-1482.6,9.794e-05,2]
[342286415,1731694266255,-1100.45,9.794e-05,2]
[342286416,1731694266265,-500.0,9.794e-05,2]
[342286417,1731694266275,-855.59,9.794e-05,2]
[342286418,1731694266286,-500.0,9.794e-05,2]
[342286419,1731694266296,-879.08,9.794e-05,2]
[342286420,1731694266306,-500.0,9.794e-05,2]
[342286421,1731694266316,-500.0,9.794e-05,2]
[342286422,1731694266326,-1020.8,9.794e-05,2]
[342286423,1731694266337,-500.0,9.794e-05,2]
[342286424,1731694266347,-500.0,9.794e-05,2]
[342286425,1731694266358,-500.0,9.794e-05,2]
[342286426,1731694266368,-500.0,9.794e-05,2]
[342286427,1731694266379,-1908.07,9.794e-05,2]
[342286428,1731694266389,-500.0,9.794e-05,2]
[342286429,1731694266398,-1382.63,9.794e-05,2]
[342286430,1731694266408,-500.0,9.794e-05,2]
[342286431,1731694266418,-500.0,9.794e-05,2]
[342286432,1731694266428,-500.0,9.794e-05,2]
[342286433,1731694266438,-1292.91,9.794e-05,2]
[342286434,1731694266447,-1931.56,9.794e-05,2]
[342286435,1731694266457,-500.0,9.794e-05,2]
[342286436,1731694266467,-500.0,9.794e-05,2]
[342286437,1731694266477,-663.56,9.794e-05,2]
[342286438,1731694266487,-1022.4,9.794e-05,2]
[342286439,1731694266497,-550.27,9.794e-05,2]
[342286440,1731694266506,-500.0,9.794e-05,2]
[342286441,1731694266516,-500.0,9.794e-05,2]
[342286442,1731694266526,-500.0,9.794e-05,2]
[342286443,1731694266537,-1470.93,9.794e-05,2]
[342286444,1731694266546,-500.0,9.794e-05,2]
[342286445,1731694266556,-681.85,9.794e-05,2]
[342286446,1731694266566,-3295.15,9.794e-05,2]
[342286447,1731694266576,-2363.83,9.794e-05,2]
[342286448,1731694266585,-500.0,9.794e-05,2]
[342286449,1731694266595,-173.65313099,9.794e-05,2]
[342286450,1731694266605,-500.0,9.794e-05,2]
[342286451,1731694266615,-652.61,9.794e-05,2]
[342286452,1731694266624,-823.21,9.794e-05,2]
[342286453,1731694266634,-500.0,9.794e-05,2]
[342286454,1731694266643,-1052.67,9.794e-05,2]
[342286455,1731694266654,-731.29,9.794e-05,2]
[342286456,1731694266664,-2854.94,9.794e-05,2]
[342286457,1731694266674,-817.4,9.794e-05,2]
[342286458,1731694266684,-500.0,9.794e-05,2]
[342286459,1731694266693,-500.0,9.795e-05,2]
[342286460,1731694266703,-692.79,9.795e-05,2]
[342286461,1731694266713,-941.03,9.795e-05,2]
[342286462,1731694266722,-1289.24,9.795e-05,7]
[342286463,1731694266732,-500.0,9.795e-05,2]
[342286464,1731694266741,-500.0,9.795e-05,2]
[342286465,1731694266751,-519.1,9.795e-05,2]
[342286466,1731694266760,-500.0,9.795e-05,2]
[342286467,1731694266771,-500.0,9.795e-05,2]
[342286468,1731694266780,-500.0,9.795e-05,2]
[342286469,1731694266792,-537.84,9.795e-05,2]
[342286470,1731694266802,-680.4,9.795e-05,2]
[342286471,1731694266812,-500.0,9.795e-05,2]
[342286472,1731694266822,-500.0,9.795e-05,2]
[342286473,1731694266832,-500.0,9.795e-05,2]
[342286474,1731694266843,-500.0,9.795e-05,2]
[342286475,1731694266852,-500.0,9.795e-05,2]
[342286476,1731694266862,-500.0,9.795e-05,2]
[342286477,1731694266872,-500.0,9.795e-05,2]
[342286478,1731694266882,-2164.37,9.795e-05,2]
[342286479,1731694266892,-500.0,9.795e-05,2]
[342286480,1731694266902,-771.63,9.795e-05,2]
[342286481,1731694266912,-500.0,9.795e-05,2]
[342286482,1731694266922,-1215.6,9.795e-05,2]
[342286483,1731694266932,-500.0,9.795e-05,2]
[342286484,1731694266942,-605.43,9.795e-05,2]
[342286485,1731694266951,-1591.21,9.795e-05,2]
[342286486,1731694266963,-1475.43,9.795e-05,2]
[342286487,1731694266974,-1098.58,9.795e-05,2]
[342286488,1731694266984,-600.55,9.795e-05,2]
[342286489,1731694266993,-500.0,9.795e-05,2]
[342286490,1731694267003,-500.0,9.795e-05,2]
[342286491,1731694267013,-1892.72,9.795e-05,2]
[342286492,1731694267023,-500.0,9.795e-05,2]
[342286493,1731694267033,-500.0,9.795e-05,2]
[342286494,1731694267046,-500.0,9.795e-05,2]
[342286495,1731694267056,-4043.71,9.795e-05,2]
[342286496,1731694267066,-500.0,9.795e-05,2]
[342286497,1731694267077,-500.0,9.795e-05,2]
[342286498,1731694267087,-500.0,9.795e-05,2]
[342286499,1731694267096,-500.0,9.795e-05,2]
[342286500,1731694267106,-525.85,9.795e-05,2]
[342286501,1731694267116,-350.0,9.795e-05,2]
[342286502,1731694267126,-500.0,9.795e-05,2]
[342286503,1731694267136,-1195.25,9.795e-05,2]
[342286504,1731694267147,-1425.77,9.795e-05,2]
[342286505,1731694267156,-500.0,9.795e-05,2]
[342286506,1731694267166,-500.0,9.795e-05,2]
[342286507,1731694267176,-718.79,9.795e-05,2]
[342286508,1731694267187,-500.0,9.795e-05,2]
[342286509,1731694267197,-2302.68,9.795e-05,2]
[342286510,1731694267207,-938.43,9.795e-05,2]
[342286511,1731694267217,-839.96,9.795e-05,2]
[342286512,1731694267227,-500.0,9.795e-05,2]
[342286513,1731694267237,-500.0,9.795e-05,2]
[342286514,1731694267246,-525.94,9.795e-05,2]
[342286515,1731694267256,-500.0,9.795e-05,2]
[342286516,1731694267266,-1920.65,9.795e-05,2]
[342286517,1731694267275,-500.0,9.795e-05,2]
[342286518,1731694267285,-660.24,9.795e-05,2]
[342286519,1731694267301,-500.0,9.795e-05,2]
[342286520,1731694267310,-500.0,9.795e-05,2]
[342286521,1731694267320,-500.0,9.795e-05,2]
[342286522,1731694267329,-645.52,9.795e-05,2]
[342286523,1731694267338,-1867.04,9.795e-05,2]
[342286524,1731694267348,-500.0,9.795e-05,2]
[342286525,1731694267358,-732.95,9.795e-05,2]
[342286526,1731694267367,-500.0,9.795e-05,2]
[342286527,1731694267377,-500.0,9.795e-05,2]
[342286528,1731694267387,-1081.95,9.795e-05,2]
[342286529,1731694267397,-532.05,9.795e-05,2]
[342286530,1731694267407,-500.0,9.795e-05,2]
[342286531,1731694267416,-500.0,9.795e-05,2]
[342286532,1731694267426,-500.0,9.795e-05,2]
[342286533,1731694267436,-513.38,9.795e-05,2]
[342286534,1731694267445,-500.0,9.795e-05,2]
[342286535,1731694267455,-1103.53,9.795e-05,2]
[342286536,1731694267464,-500.0,9.795e-05,2]
[342286537,1731694267474,-506.24,9.795e-05,2]
[342286538,1731694267483,-523.2857683,9.795e-05,2]
[342286539,1731694267493,-500.0,9.795e-05,2]
[342286540,1731694267504,-500.0,9.795e-05,2]
[342286541,1731694267513,-500.0,9.795e-05,2]
[342286542,1731694267523,-500.0,9.795e-05,2]
[342286543,1731694267533,-500.0,9.795e-05,2]
[342286544,1731694267548,-500.0,9.795e-05,2]
[342286545,1731694267558,-879.04,9.795e-05,2]
[342286546,1731694267568,-1842.02,9.795e-05,2]
[342286547,1731694267578,-1133.19,9.795e-05,2]
[342286548,1731694267588,-501.11,9.795e-05,2]
[342286549,1731694267598,-500.0,9.795e-05,2]
[342286550,1731694267608,-723.8,9.795e-05,2]
[342286551,1731694267618,-511.07180405,9.795e-05,2]
[342286552,1731694267628,-691.99,9.795e-05,2]
[342286553,1731694267637,-931.19,9.795e-05,2]
[342286554,1731694267647,-1032.33,9.795e-05,2]
[342286555,1731694267656,-730.62,9.795e-05,2]
[342286556,1731694267666,-1422.03,9.795e-05,2]
[342286557,1731694267676,-1174.71,9.795e-05,2]
[342286558,1731694267685,-500.0,9.795e-05,2]
[342286559,1731694267694,-837.47,9.795e-05,2]
[342286560,1731694267705,-500.0,9.795e-05,2]
[342286561,1731694267715,-735.17,9.795e-05,2]
[342286562,1731694267726,-500.0,9.795e-05,2]
[342286563,1731694267736,-578.45,9.795e-05,2]
[342286564,1731694267745,-500.0,9.795e-05,2]
[342286565,1731694267755,-500.0,9.795e-05,2]
[342286566,1731694268128,-1142.49,9.795e-05,2]
[342286567,1731694268138,-1181.86,9.795e-05,2]
[342286568,1731694268148,-759.78,9.795e-05,2]